fUSD/lending_fUSD_20250106
["ID","MTS","AMOUNT","RATE_DAILY","PERIOD"]
[347817715,1736127049783,-500.0,0.00011698,2]
[347817716,1736127049793,-500.0,0.00011698,2]
[347817717,1736127049801,-500.0,0.00011698,2]
[347817718,1736127049811,-500.0,0.00011698,2]
[347817719,1736127049820,-500.0,0.00011698,2]
[347817720,1736127049829,-500.0,0.00011698,2]
[347817721,1736127049838,-500.0,0.00011698,2]
[347817722,1736127049847,-500.0,0.00011698,2]
[347817723,1736127049857,-500.0,0.00011698,2]
[347817724,1736127049866,-500.0,0.00011698,2]
[347817725,1736127049875,-530.67,0.00011698,2]
[347817726,1736127049884,-500.0,0.00011698,2]
[347817727,1736127049893,-500.0,0.00011698,2]
[347817728,1736127049902,-500.0,0.00011698,2]
[347817729,1736127049912,-500.0,0.00011698,2]
[347817730,1736127049921,-500.0,0.00011698,2]
[347817731,1736127049931,-500.0,0.00011698,2]
[347817732,1736127049940,-560.59,0.00011698,2]
[347817733,1736127049949,-500.0,0.00011698,2]
[347817734,1736127049959,-500.0,0.00011698,2]
[347817735,1736127049969,-500.0,0.00011698,2]
[347817736,1736127049978,-500.0,0.00011698,2]
[347817737,1736127049988,-500.0,0.00011698,2]
[347817738,1736127049997,-500.0,0.00011698,2]
[347817739,1736127050007,-500.0,0.00011698,2]
[347817740,1736127050016,-500.0,0.00011698,2]
[347817741,1736127050026,-501.83099768,0.00011698,2]
[347817742,1736127050036,-500.0,0.00011698,2]
[347817743,1736127050046,-500.0,0.00011698,2]
[347817744,1736127050056,-503.85906517,0.00011698,2]
[347817745,1736127050065,-500.0,0.00011698,2]
[347817746,1736127050075,-605.02048017,0.00011698,2]
[347817747,1736127050084,-1500.0,0.00011699,2]
[347817748,1736127050093,-1000.0,0.00011699,2]
[347817749,1736127050102,-1649.1996,0.00011699,2]
[347817750,1736127050111,-371.2847,0.00011699,2]
[347817751,1736127050120,-282.55101992,0.000117,2]
[347817752,1736127050129,-156.659395,0.000117,2]
[347817753,1736127050139,-165.77,0.00011768,2]
[347817754,1736127050148,-500.0,0.00011768,2]
[347817755,1736127050157,-500.0,0.00011768,2]
[347817756,1736127050166,-500.0,0.00011768,2]
[347817757,1736127050175,-500.0,0.00011768,2]
[347817758,1736127050184,-500.0,0.00011768,2]
[347817759,1736127050193,-500.0,0.00011768,2]
[347817760,1736127050202,-1950.61,0.00011768,2]
[347817761,1736127050211,-598.27,0.00011768,2]
[347817762,1736127050220,-636.32,0.00011768,2]
[347817763,1736127050229,-1539.46195445,0.00011798,2]
[347817764,1736127050242,-2895.99315486,0.00011798,2]
[347817766,1736127155889,267.85787188,6.881e-05,7]
[347817773,1736127304042,158.0,6.881e-05,30]
[347817774,1736127304370,158.0,0.00011921,30]
[347817775,1736127603084,158.0,6.881e-05,30]
[347817778,1736127903718,158.33836822,6.881e-05,30]
[347817804,1736128193854,1077.7362582,0.0002,120]
[347817806,1736128231688,-500.0,8.466e-05,2]
[347817807,1736128231700,-66.52,8.466e-05,2]
[347817808,1736128231710,-200.0,9.776e-05,2]
[347817809,1736128231720,-245.26461332,9.782e-05,2]
[347817810,1736128231729,-245.26461332,9.783e-05,2]
[347817811,1736128231739,-215.60312654,9.79e-05,2]
[347817812,1736128231751,-29.66148678,9.79e-05,2]
[347817813,1736128231761,-245.26461332,9.791e-05,2]
[347817814,1736128231772,-123.00169324,9.793e-05,2]
[347817815,1736128231855,-122.26292008,9.793e-05,2]
[347817816,1736128231865,-245.26461332,9.795e-05,2]
[347817817,1736128231875,-165.78,9.868e-05,2]
[347817818,1736128231884,-199.9600583,0.00010024,2]
[347817819,1736128231894,-150.0,0.0001011,2]
[347817820,1736128231903,-348.07,0.00010121,2]
[347817821,1736128231913,-150.0,0.00010123,2]
[347817822,1736128231922,-300.0,0.00010123,2]
[347817823,1736128231932,-500.0,0.00010124,2]
[347817824,1736128231941,-2270.47,0.00010124,2]
[347817825,1736128231951,-500.0,0.00010124,2]
[347817826,1736128231960,-500.0,0.00010124,2]
[347817827,1736128231969,-661.99,0.00010124,2]
[347817828,1736128231979,-42.75027075,0.00010124,2]
[347817829,1736128231990,-457.24972925,0.00010124,2]
[347817830,1736128231999,-83.87811403,0.00010124,2]
[347817831,1736128232011,-416.12188597,0.00010124,2]
[347817832,1736128232021,-1016.59200146,0.00010124,2]
[347817833,1736128232031,-500.0,0.00010124,2]
[347817834,1736128232040,-512.76,0.00010124,2]
[347817835,1736128232049,-909.85,0.00010124,2]
[347817836,1736128232058,-167.2,0.00010137,2]
[347817837,1736128232068,-690.69,0.00010137,2]
[347817838,1736128232077,-250.0,0.0001017,2]
[347817839,1736128232086,-1000.0,0.00010198,2]
[347817840,1736128232095,-267.82611257,0.00010214,2]
[347817842,1736128232513,-62.97388743,0.00010214,2]
[347817843,1736128232730,-150.99,0.00010214,2]
[347817844,1736128232740,-365.39964451,0.00010219,2]
[347817845,1736128232751,-8889.50442084,0.00010219,2]
[347817846,1736128232763,-336.50062,0.00010219,2]
[347817847,1736128232776,-3092.59501818,0.00010219,2]
[347817850,1736128237591,-500.0,0.00010124,2]
[347817851,1736128237601,-511.86821652,0.00010219,2]
[347817852,1736128237751,-3593.88520939,0.00010219,2]
[347817853,1736128237763,-7110.24687056,0.00010219,2]
[347817854,1736128237774,-1500.0,0.00010336,2]
[347817855,1736128237784,-299.99,0.00010397,2]
[347817856,1736128237793,-150.99,0.00010397,2]
[347817857,1736128237802,-371.7162903,0.00010398,2]
[347817858,1736128237812,-2270.47,0.00010398,2]
[347817859,1736128237821,-500.0,0.00010398,2]
[347817860,1736128237830,-500.0,0.00010398,2]
[347817861,1736128237840,-661.99,0.00010398,2]
[347817862,1736128237850,-500.0,0.00010398,2]
[347817863,1736128237859,-500.0,0.00010398,2]
[347817864,1736128237868,-512.76,0.00010398,2]
[347817865,1736128237878,-909.85,0.00010398,2]
[347817866,1736128237887,-500.0,0.00010398,2]
[347817867,1736128237897,-427.89,0.00010513,2]
[347817868,1736128237906,-2270.47,0.00010672,2]
[347817869,1736128237915,-500.0,0.00010672,2]
[347817870,1736128237924,-500.0,0.00010672,2]
[347817871,1736128237934,-661.99,0.00010672,2]
[347817872,1736128237943,-500.0,0.00010672,2]
[347817873,1736128237952,-500.0,0.00010672,2]
[347817874,1736128237962,-512.76,0.00010672,2]
[347817875,1736128237972,-909.85,0.00010672,2]
[347817876,1736128237981,-500.0,0.00010672,2]
[347817877,1736128237991,-566.52,0.0001073,2]
[347817878,1736128238000,-167.89,0.00010789,2]
[347817879,1736128238009,-488.1716,0.00010897,2]
[347817880,1736128238019,-15181.4637,0.00010899,2]
[347817881,1736128238028,-2270.47,0.00010946,2]
[347817882,1736128238038,-507.48570855,0.00010946,2]
[347817883,1736128238047,-500.0,0.00010946,2]
[347817884,1736128238057,-661.99,0.00010946,2]
[347817885,1736128238067,-500.0,0.00010946,2]
[347817886,1736128238076,-500.0,0.00010946,2]
[347817887,1736128238086,-512.76,0.00010946,2]
[347817888,1736128238096,-909.85,0.00010946,2]
[347817889,1736128238105,-500.0,0.00010946,2]
[347817890,1736128238115,-150.0,0.00010959,2]
[347817891,1736128238125,-400.0,0.00010986,2]
[347817892,1736128238134,-500.0,0.00010996,2]
[347817893,1736128238144,-504.44,0.00010996,2]
[347817894,1736128238154,-1506.41,0.00010996,2]
[347817895,1736128238164,-718.79,0.00010996,2]
[347817896,1736128238174,-2137.46,0.00010996,2]
[347817897,1736128238183,-711.44,0.00010996,2]
[347817898,1736128238193,-1106.01,0.00010996,2]
[347817899,1736128238203,-500.0,0.00010996,2]
[347817900,1736128238212,-628.11,0.00010996,2]
[347817901,1736128238222,-376.64765117,0.00010999,2]
[347817902,1736128238232,-616.93283887,0.00010999,2]
[347817903,1736128238242,-500.0,0.00010999,2]
[347817904,1736128238251,-506.62576051,0.00010999,2]
[347817905,1736128238262,-508.40928854,0.00010999,2]
[347817906,1736128238272,-507.80017931,0.00010999,2]
[347817907,1736128238282,-500.0,0.00010999,2]
[347817908,1736128238291,-583.87195647,0.00010999,2]
[347817909,1736128238300,-500.0,0.00010999,2]
[347817910,1736128238310,-508.68863004,0.00010999,2]
[347817911,1736128238319,-506.00708359,0.00010999,2]
[347817912,1736128238329,-503.75090582,0.00010999,2]
[347817913,1736128238338,-509.56939795,0.00010999,2]
[347817914,1736128238348,-500.0,0.00010999,2]
[347817915,1736128238357,-500.0,0.00010999,2]
[347817916,1736128238366,-505.66858307,0.00010999,2]
[347817917,1736128238375,-504.71377121,0.00010999,2]
[347817918,1736128238384,-507.48634426,0.00010999,2]
[347817919,1736128238393,-501.73100603,0.00010999,2]
[347817920,1736128238402,-531.93796208,0.00010999,2]
[347817921,1736128238411,-500.0,0.00010999,2]
[347817922,1736128238421,-500.0,0.00010999,2]
[347817923,1736128238430,-500.0,0.00010999,2]
[347817924,1736128238439,-500.0,0.00010999,2]
[347817925,1736128238448,-500.0,0.00010999,2]
[347817926,1736128238458,-200.4860298,0.00010999,2]
[347817927,1736128238512,-311.62981323,0.00010999,2]
[347817928,1736128238522,-531.70673664,0.00010999,2]
[347817929,1736128238531,-500.0,0.00010999,2]
[347817930,1736128238540,-486.37476891,0.00010999,2]
[347817931,1736128238549,-500.0,0.00010999,2]
[347817932,1736128238559,-507.82274849,0.00010999,2]
[347817933,1736128238568,-503.90853002,0.00010999,2]
[347817934,1736128238577,-579.21294834,0.00010999,2]
[347817935,1736128238586,-547.86790854,0.00010999,2]
[347817936,1736128238596,-511.45724751,0.00010999,2]
[347817937,1736128238605,-504.50198511,0.00010999,2]
[347817938,1736128238615,-380.20391017,0.00010999,2]
[347817939,1736128238624,-557.44811031,0.00010999,2]
[347817940,1736128238633,-280.7858637,0.00010999,2]
[347817941,1736128238642,-500.0,0.00010999,2]
[347817942,1736128238651,-508.50677971,0.00010999,2]
[347817943,1736128238661,-500.0,0.00010999,2]
[347817944,1736128238670,-502.02572734,0.00010999,2]
[347817945,1736128238680,-647.94798616,0.00010999,2]
[347817946,1736128238693,-500.0,0.00010999,2]
[347817947,1736128238702,-500.0,0.00010999,2]
[347817948,1736128238711,-503.7410338,0.00010999,2]
[347817949,1736128238720,-517.09345836,0.00010999,2]
[347817950,1736128238729,-500.0,0.00010999,2]
[347817951,1736128238739,-201.34874397,0.00010999,2]
[347817952,1736128238748,-511.0639718,0.00010999,2]
[347817953,1736128238757,-597.00888116,0.00010999,2]
[347817954,1736128238767,-500.0,0.00010999,2]
[347817955,1736128238777,-500.0,0.00010999,2]
[347817956,1736128238786,-500.0,0.00010999,2]
[347817957,1736128238795,-500.0,0.00010999,2]
[347817958,1736128238804,-509.1945628,0.00010999,2]
[347817959,1736128238814,-531.01810632,0.00010999,2]
[347817960,1736128238823,-616.17975139,0.00010999,2]
[347817961,1736128238832,-500.0,0.00010999,2]
[347817962,1736128238841,-174.52517054,0.00010999,2]
[347817963,1736128238851,-500.0,0.00010999,2]
[347817964,1736128238860,-500.0,0.00010999,2]
[347817965,1736128238870,-428.08623562,0.00010999,2]
[347817966,1736128238879,-500.0,0.00010999,2]
[347817967,1736128238888,-502.9298239,0.00010999,2]
[347817968,1736128238897,-500.0,0.00010999,2]
[347817969,1736128238906,-502.87901527,0.00010999,2]
[347817970,1736128238915,-500.0,0.00010999,2]
[347817971,1736128238924,-500.0,0.00010999,2]
[347817972,1736128238934,-500.0,0.00010999,2]
[347817973,1736128238944,-197.72287585,0.00010999,2]
[347817974,1736128238953,-500.0,0.00010999,2]
[347817975,1736128238962,-500.0,0.00010999,2]
[347817976,1736128238971,-500.0,0.00010999,2]
[347817977,1736128238981,-500.0,0.00010999,2]
[347817978,1736128238989,-500.0,0.00010999,2]
[347817979,1736128238998,-417.24237352,0.00010999,2]
[347817980,1736128239008,-500.0,0.00010999,2]
[347817981,1736128239018,-500.0,0.00010999,2]
[347817982,1736128239027,-503.51736161,0.00010999,2]
[347817983,1736128239037,-503.19750863,0.00010999,2]
[347817984,1736128239046,-501.7488858,0.00010999,2]
[347817985,1736128239055,-502.16475439,0.00010999,2]
[347817986,1736128239064,-591.57366369,0.00010999,2]
[347817987,1736128239074,-503.23682538,0.00010999,2]
[347817988,1736128239083,-562.10325223,0.00010999,2]
[347817989,1736128239093,-35.32624546,0.00010999,2]
[347817990,1736128239104,-471.40082336,0.00010999,2]
[347817991,1736128239113,-502.78462214,0.00010999,2]
[347817992,1736128239123,-502.19937739,0.00010999,2]
[347817993,1736128239132,-505.92444284,0.00010999,2]
[347817994,1736128239141,-504.15530692,0.00010999,2]
[347817995,1736128239150,-507.76278428,0.00010999,2]
[347817996,1736128239159,-501.67967301,0.00010999,2]
[347817997,1736128239169,-503.36276348,0.00010999,2]
[347817998,1736128239178,-1547.57,0.00010999,2]
[347817999,1736128239187,-500.0,0.00010999,2]
[347818000,1736128239197,-500.0,0.00010999,2]
[347818001,1736128239206,-550.0,0.00011,2]
[347818002,1736128239215,-500.0,0.00011097,2]
[347818003,1736128239224,-259.39183219,0.00011097,2]
[347818004,1736128239236,-240.60816781,0.00011097,2]
[347818005,1736128239245,-106.43183219,0.00011097,2]
[347818007,1736128239815,-1257.90816781,0.00011097,2]
[347818008,1736128239825,-379.97054349,0.00011097,2]
[347818009,1736128239836,-389.58945651,0.00011097,2]
[347818010,1736128239845,-339.2776484,0.00011097,2]
[347818011,1736128240199,-160.7223516,0.00011097,2]
[347818013,1736128240208,-453.3050184,0.00011097,2]
[347818017,1736128242826,-46.6949816,0.00011097,2]
[347818018,1736128242835,-500.0,0.00011097,2]
[347818019,1736128242845,-519.90467739,0.00011097,2]
[347818020,1736128242854,-526.97438872,0.00011097,2]
[347818021,1736128242864,-500.0,0.00011097,2]
[347818022,1736128242873,-549.26,0.00011097,2]
[347818023,1736128242883,-500.0,0.00011097,2]
[347818024,1736128242892,-1258.15,0.00011097,2]
[347818025,1736128242902,-820.53176629,0.00011097,2]
[347818035,1736128245636,-2004.10301672,0.00011097,2]
[347818038,1736128245648,-600.06521699,0.00011097,2]
[347818039,1736128245657,-500.0,0.00011097,2]
[347818040,1736128245667,-528.91,0.00011098,2]
[347818041,1736128245676,-255.0,0.00011125,2]
[347818042,1736128245686,-2270.47,0.0001122,2]
[347818043,1736128245698,-500.0,0.0001122,2]
[347818044,1736128245707,-661.99,0.0001122,2]
[347818045,1736128245716,-500.0,0.0001122,2]
[347818046,1736128245725,-500.0,0.0001122,2]
[347818047,1736128245734,-512.76,0.0001122,2]
[347818048,1736128245743,-909.85,0.0001122,2]
[347818049,1736128245752,-500.0,0.0001122,2]
[347818050,1736128245762,-500.0,0.0001127,2]
[347818051,1736128245772,-504.44,0.0001127,2]
[347818052,1736128245782,-1506.41,0.0001127,2]
[347818053,1736128245791,-718.79,0.0001127,2]
[347818054,1736128245800,-2137.46,0.0001127,2]
[347818055,1736128245810,-711.44,0.0001127,2]
[347818056,1736128245819,-1106.01,0.0001127,2]
[347818057,1736128245828,-500.0,0.0001127,2]
[347818058,1736128245837,-628.11,0.0001127,2]
[347818059,1736128245846,-508.66285967,0.00011273,2]
[347818060,1736128245855,-500.0,0.00011273,2]
[347818061,1736128245865,-508.02249842,0.00011273,2]
[347818062,1736128245874,-516.79307127,0.00011273,2]
[347818063,1736128245883,-500.0,0.00011273,2]
[347818064,1736128245892,-506.90764995,0.00011273,2]
[347818065,1736128245902,-500.0,0.00011273,2]
[347818066,1736128245911,-505.61853174,0.00011273,2]
[347818067,1736128245921,-565.655372,0.00011273,2]
[347818068,1736128245930,-260.81263423,0.00011273,2]
[347818069,1736128245939,-105.76581203,0.00011273,2]
[347818070,1736128245951,-394.23418797,0.00011273,2]
[347818072,1736128245960,-500.0,0.00011273,2]
[347818074,1736128245969,-500.0,0.00011273,2]
[347818076,1736128245978,-500.0,0.00011273,2]
[347818078,1736128245987,-500.0,0.00011273,2]
[347818080,1736128245996,-500.0,0.00011273,2]
[347818082,1736128246006,-500.0,0.00011273,2]
[347818084,1736128246015,-508.83799619,0.00011273,2]
[347818085,1736128246024,-69.52781597,0.00011273,2]
[347818086,1736128246035,-436.97057567,0.00011273,2]
[347818087,1736128246044,-223.44655944,0.00011273,2]
[347818088,1736128246053,-508.26362903,0.00011273,2]
[347818089,1736128246062,-508.55618669,0.00011273,2]
[347818090,1736128246071,-511.98346601,0.00011273,2]
[347818091,1736128246081,-510.38695057,0.00011273,2]
[347818092,1736128246090,-509.71673387,0.00011273,2]
[347818093,1736128246099,-500.0,0.00011273,2]
[347818094,1736128246108,-500.0,0.00011273,2]
[347818095,1736128246117,-284.28712268,0.00011273,2]
[347818096,1736128246126,-500.0,0.00011273,2]
[347818097,1736128246135,-507.01704489,0.00011273,2]
[347818098,1736128246144,-507.56792182,0.00011273,2]
[347818099,1736128246154,-500.0,0.00011273,2]
[347818100,1736128246163,-506.79509503,0.00011273,2]
[347818101,1736128246172,-349.63540458,0.00011273,2]
[347818102,1736128246181,-500.0,0.00011273,2]
[347818103,1736128246190,-519.7607711,0.00011273,2]
[347818104,1736128246199,-1110.18528862,0.00011273,2]
[347818105,1736128246217,-324.36999,0.00011273,2]
[347818106,1736128246228,-113.01472138,0.00011273,2]
[347818107,1736128246237,-277.00527862,0.00011273,2]
[347818108,1736128246248,-222.99472138,0.00011273,2]
[347818109,1736128246257,-500.0,0.00011273,2]
[347818110,1736128246267,-403.781,0.0001131,2]
[347818111,1736128246276,-87.00298656,0.00011342,2]
[347818112,1736128246304,-282.42701344,0.00011342,2]
[347818113,1736128246313,-88.16033591,0.00011371,2]
[347818137,1736129432149,-500.0,8.22e-05,2]
[347818138,1736129432159,-340.97198537,8.431e-05,2]
[347818139,1736129432189,-191.68801463,8.431e-05,2]
[347818140,1736129432198,-340.95281383,9.775e-05,2]
[347818141,1736129432207,-285.12127992,9.777e-05,2]
[347818142,1736129432217,-285.12127992,9.777e-05,2]
[347818143,1736129432226,-340.95281383,9.777e-05,2]
[347818144,1736129432235,-285.12127992,9.785e-05,2]
[347818145,1736129432244,-340.95281383,9.788e-05,2]
[347818146,1736129432255,-340.95281383,9.788e-05,2]
[347818147,1736129432264,-285.12127992,9.789e-05,2]
[347818148,1736129432273,-340.95281383,9.79e-05,2]
[347818149,1736129432283,-285.12127992,9.792e-05,2]
[347818150,1736129432292,-340.95281383,9.794e-05,2]
[347818151,1736129432301,-285.12127992,9.799e-05,2]
[347818152,1736129432310,-158.54,0.0001,12]
[347818153,1736129432320,-1495.59,0.00010124,2]
[347818154,1736129432329,-1522.05,0.00010124,2]
[347818155,1736129432338,-1476.97,0.00010124,2]
[347818156,1736129432347,-151.86,0.00010137,2]
[347818157,1736129432356,-1322.78,0.00010192,2]
[347818158,1736129432365,-761.58430034,0.00010196,2]
[347818159,1736129432376,-712.78569966,0.00010196,2]
[347818160,1736129432386,-241.46,0.00010217,2]
[347818161,1736129432395,-1495.19,0.00010261,2]
[347818163,1736129432404,-250.0,0.00010297,2]
[347818165,1736129432413,-274.34,0.00010371,2]
[347818166,1736129432423,-164.49,0.00010376,2]
[347818167,1736129432432,-334.02,0.00010382,2]
[347818168,1736129432441,-8498.81,0.000104,2]
[347818169,1736129432451,-150.99,0.00010475,2]
[347818170,1736129432460,-152.28,0.00010624,2]
[347818171,1736129432469,-358.7,0.00010658,2]
[347818172,1736129432478,-532.66,0.00010695,2]
[347818173,1736129432487,-168.16,0.00010756,2]
[347818174,1736129432496,-249.03780975,0.00010861,2]
[347818175,1736129432511,-252.5104578,0.00010861,2]
[347818176,1736129432520,-150.0,0.00010959,2]
[347818177,1736129432529,-312.69661304,0.00010959,2]
[347818178,1736129432540,-1850.7499469,0.00010959,2]
[347818179,1736129432552,-483.55344006,0.00010959,2]
[347818180,1736129432562,-500.0,0.0001096,2]
[347818181,1736129432571,-150.0,0.0001096,2]
[347818182,1736129432580,-400.0,0.00010986,2]
[347818183,1736129432590,-500.0,0.00010996,2]
[347818184,1736129432599,-500.0,0.00010996,2]
[347818185,1736129432608,-792.6,0.00010996,2]
[347818186,1736129432618,-574.37,0.00010996,2]
[347818187,1736129432627,-366.03147778,0.00010998,2]
[347818188,1736129432636,-1503.0,0.00010999,2]
[347818189,1736129432645,-1518.86,0.00010999,2]
[347818190,1736129432654,-500.0,0.00010999,2]
[347818191,1736129432663,-500.0,0.00010999,2]
[347818192,1736129432672,-506.71,0.00010999,2]
[347818193,1736129432681,-1967.27,0.00010999,2]
[347818194,1736129432690,-500.0,0.00010999,2]
[347818195,1736129432700,-500.0,0.00010999,2]
[347818196,1736129432709,-571.54,0.00010999,2]
[347818197,1736129432719,-500.0,0.00010999,2]
[347818198,1736129432728,-500.0,0.00010999,2]
[347818199,1736129432737,-291.1,0.00011,7]
[347818200,1736129432746,-282.71054259,0.00011184,2]
[347818201,1736129432759,-14505.37359107,0.000112,2]
[347818202,1736129432768,-1000.0,0.000112,2]
[347818203,1736129432778,-400.809,0.0001121,2]
[347818204,1736129432787,-500.0,0.00011264,2]
[347818205,1736129432796,-501.40653175,0.00011264,2]
[347818206,1736129432806,-503.81128818,0.00011264,2]
[347818207,1736129432815,-500.0,0.0001127,2]
[347818208,1736129432824,-500.0,0.0001127,2]
[347818209,1736129432833,-792.6,0.0001127,2]
[347818210,1736129432843,-574.37,0.0001127,2]
[347818211,1736129432852,-522.02722989,0.00011273,2]
[347818212,1736129432861,-165.29,0.00011273,2]
[347818213,1736129432870,-1967.27,0.00011273,2]
[347818214,1736129432879,-500.0,0.00011273,2]
[347818215,1736129432889,-571.54,0.00011273,2]
[347818216,1736129432898,-500.0,0.00011273,2]
[347818217,1736129432908,-500.0,0.00011273,2]
[347818218,1736129432917,-187.314182,0.00011331,2]
[347818219,1736129432926,-2000.0,0.00011371,2]
[347818220,1736129432937,-200.0,0.00011371,2]
[347818221,1736129432946,-3000.0,0.00011371,2]
[347818222,1736129432955,-300.57,0.00011479,2]
[347818223,1736129432965,-368.47,0.00011479,2]
[347818224,1736129432974,-300.63,0.00011479,2]
[347818225,1736129432983,-244.26,0.00011479,2]
[347818226,1736129432992,-248.13,0.00011479,2]
[347818227,1736129433002,-356.63,0.00011479,2]
[347818228,1736129433014,-880.0,0.00011479,2]
[347818229,1736129433023,-2000.0,0.00011485,2]
[347818230,1736129433033,-200.0,0.00011485,2]
[347818231,1736129433043,-330.8,0.00011491,2]
[347818232,1736129433054,-6288.01181273,0.00011497,2]
[347818233,1736129433066,-519.86839141,0.00011497,2]
[347818234,1736129433077,-518.48714087,0.00011497,2]
[347818235,1736129433090,-9029.61809026,0.00011497,2]
[347818236,1736129433100,-170.0,0.00011507,2]
[347818237,1736129433110,-500.0,0.00011544,2]
[347818238,1736129433122,-500.0,0.00011544,2]
[347818239,1736129433134,-402.38190974,0.00011544,2]
[347818240,1736129433159,-390.21809026,0.00011544,2]
[347818241,1736129433169,-574.37,0.00011544,2]
[347818242,1736129433178,-705.6345,0.00011545,2]
[347818243,1736129433188,-500.0,0.00011545,2]
[347818244,1736129433198,-506.67118223,0.00011545,2]
[347818245,1736129433208,-500.0,0.00011545,2]
[347818246,1736129433218,-500.0,0.00011545,2]
[347818247,1736129433228,-500.0,0.00011545,2]
[347818248,1736129433237,-500.0,0.00011545,2]
[347818249,1736129433247,-514.70203162,0.00011546,2]
[347818250,1736129433263,-500.0,0.00011546,2]
[347818251,1736129433273,-507.31685985,0.00011546,2]
[347818252,1736129433283,-500.0,0.00011546,2]
[347818253,1736129433293,-204.57403301,0.00011546,2]
[347818254,1736129433305,-507.43606076,0.00011546,2]
[347818255,1736129433316,-506.65060419,0.00011546,2]
[347818256,1736129433326,-506.96615422,0.00011546,2]
[347818257,1736129433336,-424.57839331,0.00011546,2]
[347818258,1736129433349,-82.03281677,0.00011546,2]
[347818259,1736129433360,-1967.27,0.00011547,2]
[347818260,1736129433370,-500.0,0.00011547,2]
[347818261,1736129433380,-571.54,0.00011547,2]
[347818262,1736129433390,-500.0,0.00011547,2]
[347818263,1736129433400,-500.0,0.00011547,2]
[347818264,1736129433410,-2358.52456204,0.00011597,2]
[347818265,1736129433423,-141.47543796,0.00011597,2]
[347818266,1736129433433,-161.4074663,0.00011597,2]
[347818267,1736129433442,-189.17692659,0.00011597,2]
[347818268,1736129433451,-799.72562666,0.00011597,2]
[347818269,1736129433461,-455.48809025,0.00011597,2]
[347818270,1736129433471,-5000.0,0.00011598,2]
[347818271,1736129433481,-226.4238,0.00011598,2]
[347818272,1736129433491,-210.5205,0.00011598,2]
[347818273,1736129433501,-1529.02914813,0.00011599,2]
[347818274,1736129433516,-485.17185187,0.00011599,2]
[347818275,1736129433526,-4485.66870226,0.000116,2]
[347818276,1736129433538,-1147.33748482,0.000116,2]
[347818277,1736129433550,-4616.7,0.000116,2]
[347818278,1736129433562,-21.93110592,0.000116,2]
[347818279,1736129433572,-507.39122992,0.000116,2]
[347818280,1736129433605,-1492.60877008,0.000116,2]
[347818281,1736129433615,-53.12938386,0.000116,2]
[347818282,1736129433626,-146.87061614,0.000116,2]
[347818283,1736129433636,-392.00938386,0.00011663,2]
[347818284,1736129433647,-63.47870634,0.00011663,2]
[347818285,1736129433657,-505.5212869,0.00011673,2]
[347818286,1736129433667,-334.02,0.0001168,2]
[347818287,1736129433676,-89.50000676,0.00011682,2]
[347818288,1736129433688,-4158.49999324,0.00011682,2]
[347818289,1736129433697,-510.24,0.00011696,2]
[347818290,1736129433707,-343.38992175,0.00011696,2]
[347818291,1736129433716,-500.0,0.00011696,2]
[347818292,1736129433726,-622.38,0.00011696,2]
[347818293,1736129433736,-1271.67,0.00011696,2]
[347818294,1736129433745,-500.0,0.00011696,2]
[347818295,1736129433756,-313.53856332,0.00011696,2]
[347818296,1736129433765,-500.0,0.00011696,2]
[347818297,1736129433775,-500.0,0.00011696,2]
[347818298,1736129433787,-657.32,0.00011696,2]
[347818299,1736129433798,-500.0,0.00011696,2]
[347818300,1736129433808,-738.31,0.00011696,2]